fUST/lending_fUST_20250630
["ID","MTS","AMOUNT","RATE_DAILY","PERIOD"]
[368585478,1751217045230,-377.28972154,0.00020014,2]
[368585480,1751217045239,-540.86,0.00020014,2]
[368585482,1751217045249,-460.0,0.00020014,2]
[368585484,1751217045259,-2759.24,0.00020014,2]
[368585486,1751217045269,-460.0,0.00020014,2]
[368585488,1751217045278,-902.98,0.00020014,2]
[368585490,1751217045287,-632.28,0.00020014,2]
[368585492,1751217045296,-226.07970203,0.00020014,2]
[368585494,1751217045305,-513.78,0.00020014,2]
[368585496,1751217045314,-610.19,0.00020014,2]
[368585498,1751217045323,-1064.43,0.00020014,2]
[368585500,1751217045334,-973.55,0.00020015,2]
[368585502,1751217045343,-460.0,0.00020015,2]
[368585504,1751217045354,-460.0,0.00020015,2]
[368585506,1751217045363,-2074.91,0.00020015,2]
[368585508,1751217045372,-460.0,0.00020015,2]
[368585510,1751217045381,-781.6,0.00020015,2]
[368585512,1751217045390,-1114.44,0.00020015,2]
[368585514,1751217045400,-663.87,0.00020015,2]
[368585516,1751217045409,-3615.32,0.00020015,2]
[368585518,1751217045418,-753.48,0.00020015,2]
[368585520,1751217045427,-460.0,0.00020016,2]
[368585522,1751217045437,-460.0,0.00020016,2]
[368585524,1751217045446,-504.71,0.00020016,2]
[368585526,1751217045455,-506.6,0.00020016,2]
[368585528,1751217045465,-460.0,0.00020016,2]
[368585530,1751217045474,-460.0,0.00020016,2]
[368585532,1751217045483,-460.0,0.00020016,2]
[368585534,1751217045492,-460.0,0.00020016,2]
[368585536,1751217045502,-1092.7,0.00020031,2]
[368585538,1751217045511,-460.0,0.00020031,2]
[368585540,1751217045521,-579.58,0.00020032,2]
[368585542,1751217045530,-420.0,0.00020033,2]
[368585544,1751217045539,-906.17,0.00020034,2]
[368585546,1751217045548,-3965.97106955,0.00020141,2]
[368585548,1751217045558,-500.0,0.00020177,2]
[368585550,1751217045567,-500.0,0.00020177,2]
[368585552,1751217045577,-484.0,0.00020217,2]
[368585554,1751217045587,-2219.58730504,0.00020222,2]
[368585556,1751217045596,-500.0,0.0002026,2]
[368585558,1751217045605,-460.0,0.00020286,2]
[368585560,1751217045615,-460.0,0.00020286,2]
[368585562,1751217045624,-460.0,0.00020286,2]
[368585564,1751217045634,-1453.38,0.00020286,2]
[368585566,1751217045643,-2141.24,0.00020287,2]
[368585568,1751217045652,-494.7,0.00020287,2]
[368585570,1751217045662,-281.71746863,0.00020287,2]
[368585572,1751217045671,-2351.68,0.00020287,2]
[368585574,1751217045680,-470.09,0.00020287,2]
[368585576,1751217045689,-468.63,0.00020287,2]
[368585578,1751217045699,-460.0,0.00020287,2]
[368585580,1751217045708,-460.0,0.00020287,2]
[368585582,1751217045717,-844.86,0.00020287,2]
[368585584,1751217045726,-2091.43,0.00020287,2]
[368585586,1751217045735,-460.0,0.00020287,2]
[368585588,1751217045744,-460.0,0.00020287,2]
[368585590,1751217045753,-2461.02,0.00020287,2]
[368585592,1751217045762,-2527.06,0.00020287,2]
[368585594,1751217045771,-460.0,0.00020287,2]
[368585596,1751217045780,-1239.26,0.00020287,2]
[368585598,1751217045790,-460.0,0.00020287,2]
[368585600,1751217045799,-834.91,0.00020287,2]
[368585602,1751217045808,-460.0,0.00020287,2]
[368585604,1751217045818,-460.0,0.00020287,2]
[368585606,1751217045827,-460.0,0.00020287,2]
[368585608,1751217045836,-460.0,0.00020287,2]
[368585610,1751217045845,-460.0,0.00020287,2]
[368585612,1751217045854,-460.0,0.00020287,2]
[368585614,1751217045863,-460.0,0.00020287,2]
[368585616,1751217045873,-460.0,0.00020287,2]
[368585618,1751217045882,-588.27,0.00020287,2]
[368585620,1751217045891,-460.0,0.00020287,2]
[368585623,1751217045901,-460.0,0.00020287,2]
[368585625,1751217045910,-171.16222626,0.00020288,2]
[368585627,1751217045919,-540.86,0.00020288,2]
[368585629,1751217045928,-460.0,0.00020288,2]
[368585631,1751217045938,-2759.24,0.00020288,2]
[368585633,1751217045947,-460.0,0.00020288,2]
[368585635,1751217045956,-902.98,0.00020288,2]
[368585637,1751217045965,-632.28,0.00020288,2]
[368585639,1751217045975,-513.78,0.00020288,2]
[368585641,1751217045985,-610.19,0.00020288,2]
[368585643,1751217045994,-1064.43,0.00020288,2]
[368585645,1751217046003,-973.55,0.00020289,2]
[368585647,1751217046012,-180.74785089,0.00020289,2]
[368585648,1751217046022,-460.0,0.00020289,2]
[368585651,1751217046031,-2074.91,0.00020289,2]
[368585653,1751217046041,-460.0,0.00020289,2]
[368585655,1751217046051,-781.6,0.00020289,2]
[368585657,1751217046060,-1114.44,0.00020289,2]
[368585659,1751217046070,-663.87,0.00020289,2]
[368585661,1751217046079,-3615.32,0.00020289,2]
[368585663,1751217046088,-753.48,0.00020289,2]
[368585665,1751217046098,-460.0,0.0002029,2]
[368585667,1751217046108,-460.0,0.0002029,2]
[368585669,1751217046117,-504.71,0.0002029,2]
[368585670,1751217046126,-506.6,0.0002029,2]
[368585672,1751217046135,-460.0,0.0002029,2]
[368585674,1751217046145,-460.0,0.0002029,2]
[368585676,1751217046154,-460.0,0.0002029,2]
[368585678,1751217046163,-460.0,0.0002029,2]
[368585680,1751217046173,-1092.7,0.00020305,2]
[368585682,1751217046186,-350.15232573,0.00020305,2]
[368585684,1751217046195,-579.58,0.00020306,2]
[368585686,1751217046204,-906.17,0.00020308,2]
[368585688,1751217046214,-3965.97106955,0.00020348,3]
[368585690,1751217046223,-2674.25726464,0.00020361,2]
[368585692,1751217046233,-2444.2393665,0.00020468,2]
[368585694,1751217046242,-500.0,0.00020468,2]
[368585696,1751217046251,-500.0,0.00020468,2]
[368585698,1751217046262,-500.0,0.00020468,2]
[368585701,1751217046271,-500.0,0.00020468,2]
[368585703,1751217046280,-500.0,0.00020468,2]
[368585704,1751217046289,-631.01078368,0.00020468,2]
[368585707,1751217046298,-207.4,0.00020468,2]
[368585709,1751217046308,-406.0,0.000205,2]
[368585711,1751217046317,-422.825,0.000205,2]
[368585712,1751217046326,-284.0,0.00020526,2]
[368585714,1751217046335,-150.0,0.00020547,2]
[368585716,1751217046344,-150.0,0.00020547,2]
[368585719,1751217046354,-150.0,0.00020547,2]
[368585721,1751217046363,-150.0,0.00020547,2]
[368585723,1751217046372,-966.0,0.00020547,2]
[368585725,1751217046381,-2150.0,0.00020547,2]
[368585727,1751217046390,-646.0,0.00020547,2]
[368585729,1751217046400,-3965.97106955,0.00020555,3]
[368585731,1751217046409,-460.0,0.0002056,2]
[368585732,1751217046419,-460.0,0.0002056,2]
[368585735,1751217046428,-460.0,0.0002056,2]
[368585737,1751217046438,-1453.38,0.0002056,2]
[368585739,1751217046448,-2141.24,0.00020561,2]
[368585741,1751217046457,-494.7,0.00020561,2]
[368585743,1751217046467,-2351.68,0.00020561,2]
[368585745,1751217046476,-470.09,0.00020561,2]
[368585747,1751217046485,-468.63,0.00020561,2]
[368585748,1751217046494,-460.0,0.00020561,2]
[368585750,1751217046503,-460.0,0.00020561,2]
[368585752,1751217046512,-844.86,0.00020561,2]
[368585754,1751217046522,-2091.43,0.00020561,2]
[368585756,1751217046531,-460.0,0.00020561,2]
[368585758,1751217046540,-460.0,0.00020561,2]
[368585760,1751217046549,-2461.02,0.00020561,2]
[368585762,1751217046558,-2527.06,0.00020561,2]
[368585765,1751217046567,-460.0,0.00020561,2]
[368585767,1751217046576,-1239.26,0.00020561,2]
[368585769,1751217046586,-460.0,0.00020561,2]
[368585771,1751217046595,-834.91,0.00020561,2]
[368585773,1751217046604,-460.0,0.00020561,2]
[368585775,1751217046613,-460.0,0.00020561,2]
[368585777,1751217046622,-460.0,0.00020561,2]
[368585779,1751217046631,-460.0,0.00020561,2]
[368585781,1751217046640,-460.0,0.00020561,2]
[368585783,1751217046649,-460.0,0.00020561,2]
[368585785,1751217046658,-460.0,0.00020561,2]
[368585787,1751217046667,-216.29663723,0.00020561,2]
[368585789,1751217046676,-588.27,0.00020561,2]
[368585791,1751217046686,-460.0,0.00020561,2]
[368585793,1751217046695,-460.0,0.00020561,2]
[368585795,1751217046704,-540.86,0.00020562,2]
[368585797,1751217046713,-460.0,0.00020562,2]
[368585799,1751217046722,-2759.24,0.00020562,2]
[368585801,1751217046731,-460.0,0.00020562,2]
[368585803,1751217046741,-902.98,0.00020562,2]
[368585805,1751217046751,-632.28,0.00020562,2]
[368585807,1751217046760,-513.78,0.00020562,2]
[368585809,1751217046769,-610.19,0.00020562,2]
[368585811,1751217046779,-1064.43,0.00020562,2]
[368585813,1751217046788,-973.55,0.00020563,2]
[368585815,1751217046798,-460.0,0.00020563,2]
[368585817,1751217046807,-2074.91,0.00020563,2]
[368585819,1751217046817,-460.0,0.00020563,2]
[368585821,1751217046826,-781.6,0.00020563,2]
[368585824,1751217046837,-1114.44,0.00020563,2]
[368585826,1751217046847,-663.87,0.00020563,2]
[368585828,1751217046857,-3615.32,0.00020563,2]
[368585830,1751217046866,-753.48,0.00020563,2]
[368585832,1751217046878,-460.0,0.00020564,2]
[368585834,1751217046887,-460.0,0.00020564,2]
[368585836,1751217046896,-504.71,0.00020564,2]
[368585838,1751217046906,-506.6,0.00020564,2]
[368585840,1751217046915,-460.0,0.00020564,2]
[368585842,1751217046925,-460.0,0.00020564,2]
[368585844,1751217046935,-460.0,0.00020564,2]
[368585846,1751217046944,-460.0,0.00020564,2]
[368585848,1751217046954,-1092.7,0.00020579,2]
[368585850,1751217046963,-579.58,0.0002058,2]
[368585852,1751217046973,-906.17,0.00020582,2]
[368585855,1751217046991,-4987.53,0.000206,2]
[368585857,1751217047006,-686.713,0.00020724,2]
[368585859,1751217047016,-177.92820716,0.00020724,2]
[368585861,1751217047027,-3965.97106955,0.00020762,3]
[368585864,1751217047037,-2674.25726465,0.00020811,2]
[368585866,1751217047047,-460.0,0.00020834,2]
[368585868,1751217047057,-460.0,0.00020834,2]
[368585870,1751217047068,-460.0,0.00020834,2]
[368585872,1751217047078,-1453.38,0.00020834,2]
[368585874,1751217047088,-2141.24,0.00020835,2]
[368585876,1751217047099,-494.7,0.00020835,2]
[368585878,1751217047109,-2351.68,0.00020835,2]
[368585880,1751217047119,-470.09,0.00020835,2]
[368585882,1751217047129,-468.63,0.00020835,2]
[368585884,1751217047139,-460.0,0.00020835,2]
[368585886,1751217047150,-460.0,0.00020835,2]
[368585888,1751217047159,-844.86,0.00020835,2]
[368585890,1751217047170,-2091.43,0.00020835,2]
[368585892,1751217047183,-460.0,0.00020835,2]
[368585894,1751217047192,-460.0,0.00020835,2]
[368585896,1751217047202,-2461.02,0.00020835,2]
[368585898,1751217047212,-2527.06,0.00020835,2]
[368585900,1751217047223,-460.0,0.00020835,2]
[368585902,1751217047233,-1239.26,0.00020835,2]
[368585904,1751217047243,-460.0,0.00020835,2]
[368585906,1751217047255,-834.91,0.00020835,2]
[368585908,1751217047265,-460.0,0.00020835,2]
[368585911,1751217047275,-460.0,0.00020835,2]
[368585912,1751217047284,-460.0,0.00020835,2]
[368585914,1751217047294,-460.0,0.00020835,2]
[368585917,1751217047304,-460.0,0.00020835,2]
[368585919,1751217047314,-460.0,0.00020835,2]
[368585920,1751217047323,-460.0,0.00020835,2]
[368585923,1751217047333,-588.27,0.00020835,2]
[368585925,1751217047342,-460.0,0.00020835,2]
[368585927,1751217047352,-460.0,0.00020835,2]
[368585929,1751217047362,-973.55,0.00020836,2]
[368585931,1751217047372,-460.0,0.00020836,2]
[368585933,1751217047381,-2074.91,0.00020836,2]
[368585935,1751217047391,-540.86,0.00020836,2]
[368585937,1751217047401,-585.91525707,0.00020836,2]
[368585939,1751217047411,-460.0,0.00020836,2]
[368585941,1751217047421,-2759.24,0.00020836,2]
[368585943,1751217047431,-460.0,0.00020836,2]
[368585945,1751217047440,-781.6,0.00020836,2]
[368585947,1751217047450,-902.98,0.00020836,2]
[368585949,1751217047459,-1114.44,0.00020836,2]
[368585951,1751217047469,-632.28,0.00020836,2]
[368585953,1751217047479,-663.87,0.00020836,2]
[368585955,1751217047489,-513.78,0.00020836,2]
[368585957,1751217047499,-3615.32,0.00020836,2]
[368585959,1751217047509,-610.19,0.00020836,2]
[368585961,1751217047518,-1064.43,0.00020836,2]
[368585963,1751217047527,-753.48,0.00020836,2]
[368585966,1751217047538,-460.0,0.00020838,2]
[368585968,1751217047550,-460.0,0.00020838,2]
[368585970,1751217047561,-504.71,0.00020838,2]
[368585972,1751217047571,-506.6,0.00020838,2]
[368585974,1751217047580,-460.0,0.00020838,2]
[368585976,1751217047590,-442.43869714,0.00020838,2]
[368585978,1751217047601,-460.0,0.00020838,2]
[368585980,1751217047614,-460.0,0.00020838,2]
[368585982,1751217047624,-1092.7,0.00020853,2]
[368585984,1751217047635,-579.58,0.00020854,2]
[368585986,1751217047644,-906.17,0.00020856,2]
[368585988,1751217047655,-164.308551,0.00020904,2]
[368585991,1751217047664,-284.0,0.00020955,2]
[368585993,1751217047674,-3965.97106955,0.00020969,4]
[368585995,1751217047684,-284.0,0.00020975,2]
[368585997,1751217047694,-284.0,0.0002098,2]
[368585999,1751217047703,-2489.52,0.00021,2]
[368586001,1751217047714,-5501.0,0.00021,2]
[368586003,1751217047723,-284.0,0.0002103,2]
[368586005,1751217047733,-284.0,0.00021036,2]
[368586007,1751217047743,-2219.58730504,0.00021061,2]
[368586009,1751217047754,-495727.2155197,0.00021066,2]
[368586017,1751217047816,-979.86,0.00021066,2]
[368586019,1751217047828,-452.41245022,0.00021066,2]
[368586026,1751217047886,-840.0,0.00019465,2]
[368586029,1751217047899,-207.34,0.00019465,2]
[368586031,1751217047909,-686.6190087,0.00021066,2]
[368586038,1751217047969,-4113.94810418,0.00021066,2]
[368586040,1751217047982,-2507.09641051,0.00021066,2]
[368586053,1751217048200,-90.56522446,0.00021066,2]
[368586055,1751217048223,-400.0,0.00019739,2]
[368586107,1751217048717,-460.0,0.00018369,2]
[368586109,1751217048727,-158.41132676,0.00019106,2]
[368587253,1751217060566,264.018544,0.00013699,2]
[368589055,1751217319520,380.0,0.00024658,120]
[368589056,1751217496558,238.978012,0.00017374,2]
[368589057,1751217541185,4464.97438126,0.00017374,2]
[368589058,1751217541208,20135.47968584,0.00017374,2]
[368589059,1751217630775,166.0,0.0001737,2]
[368589113,1751217999600,275.451225,0.00013699,2]
[368589274,1751218120165,9268.75183802,0.00018,2]
[368589338,1751218232800,-426.24319399,0.00018266,2]
[368589339,1751218232810,-300.0,0.00018357,2]
[368589340,1751218232819,-247.0,0.00018357,2]
[368589341,1751218232828,-300.0,0.00018357,2]
[368589342,1751218232838,-821.0657063,0.00018357,2]
[368589343,1751218232850,-378.9342937,0.00018357,2]
[368589344,1751218232859,-852.53,0.00018358,3]
[368589345,1751218232868,-426.26,0.00018358,3]
[368589346,1751218232878,-213.13,0.00018358,3]
[368589347,1751218232887,-639.42,0.00018358,3]
[368589348,1751218232897,-365.61790684,0.00018358,2]
[368589349,1751218232908,-130.36755974,0.00018358,2]
[368589350,1751218232918,-460.0,0.00018358,2]
[368589351,1751218232927,-540.3610873,0.00018358,2]
[368589352,1751218232935,-460.0,0.00018358,2]
[368589353,1751218232945,-3585.22312097,0.00018359,2]
[368589354,1751218232956,-46414.77687903,0.00018359,2]
[368589355,1751218232966,-4092.13,0.00018359,3]
[368589356,1751218232975,-2046.07,0.00018359,3]
[368589357,1751218232984,-1705.06,0.00018359,3]
[368589358,1751218232994,-603.46305526,0.00018365,2]
[368589359,1751218233003,-460.0,0.00018365,2]
[368589360,1751218233012,-460.0,0.00018365,2]
[368589361,1751218233022,-431.59383985,0.00018365,2]
[368589362,1751218233031,-460.0,0.00018365,2]
[368589363,1751218233041,-460.0,0.00018365,2]
[368589364,1751218233051,-2315.0,0.00018365,2]
[368589365,1751218233061,-460.0,0.00018365,2]
[368589366,1751218233072,-289.62656306,0.00018365,2]
[368589367,1751218233082,-460.0,0.00018365,2]
[368589368,1751218233092,-460.0,0.00018365,2]
[368589369,1751218233102,-460.0,0.00018365,2]
[368589370,1751218233112,-460.0,0.00018365,2]
[368589371,1751218233122,-460.0,0.00018365,2]
[368589372,1751218233131,-460.0,0.00018365,2]
[368589373,1751218233141,-460.0,0.00018365,2]
[368589374,1751218233150,-2375.58,0.00018365,2]
[368589375,1751218233160,-460.0,0.00018365,2]
[368589376,1751218233169,-460.0,0.00018365,2]
[368589377,1751218233179,-460.0,0.00018365,2]
[368589378,1751218233189,-2726.44,0.00018365,2]
[368589379,1751218233198,-460.92259072,0.00018365,2]
[368589380,1751218233217,-456.27908205,0.00018365,2]
[368589381,1751218233230,-460.0,0.00018365,2]
[368589382,1751218233240,-460.0,0.00018365,2]
[368589383,1751218233251,-460.0,0.00018365,2]
[368589384,1751218233262,-1517.99,0.00018365,2]
[368589385,1751218233272,-460.0,0.00018365,2]
[368589386,1751218233283,-460.0,0.00018365,2]
[368589387,1751218233293,-460.0,0.00018365,2]
[368589388,1751218233303,-460.0,0.00018365,2]
[368589389,1751218233314,-1629.69,0.00018365,2]
[368589390,1751218233325,-460.0,0.00018365,2]
[368589391,1751218233335,-460.0,0.00018365,2]
[368589392,1751218233345,-460.0,0.00018365,2]
[368589393,1751218233355,-460.0,0.00018366,2]
[368589394,1751218233366,-383.12,0.00018366,2]
[368589395,1751218233376,-460.0,0.00018366,2]
[368589396,1751218233387,-460.0,0.00018366,2]
[368589397,1751218233397,-460.0,0.00018366,2]
[368589398,1751218233408,-460.0,0.00018366,2]
[368589399,1751218233419,-460.0,0.00018366,2]
[368589400,1751218233430,-460.0,0.00018366,2]
[368589401,1751218233440,-460.0,0.00018366,2]
[368589402,1751218233450,-460.0,0.00018366,2]
[368589403,1751218233460,-381.30568454,0.00018366,2]
[368589404,1751218233470,-460.0,0.00018366,2]
[368589405,1751218233480,-460.0,0.00018366,2]
[368589406,1751218233491,-406.27023467,0.00018366,2]
[368589407,1751218233501,-460.0,0.00018366,2]
[368589408,1751218233511,-502.36945495,0.00018366,2]
[368589409,1751218233521,-460.0,0.00018366,2]
[368589410,1751218233531,-460.0,0.00018366,2]
[368589411,1751218233541,-460.0,0.00018366,2]
[368589412,1751218233550,-460.0,0.00018366,2]
[368589413,1751218233561,-543.77327371,0.00018366,2]
[368589414,1751218233572,-403.49873803,0.00018366,2]
[368589415,1751218233582,-460.0,0.00018366,2]
[368589416,1751218233592,-460.0,0.00018366,2]
[368589417,1751218233602,-355.68320959,0.00018366,2]
[368589418,1751218233612,-460.0,0.00018366,2]
[368589419,1751218233622,-460.0,0.00018366,2]
[368589420,1751218233636,-460.0,0.00018366,2]
[368589421,1751218233647,-461.1098923,0.00018366,2]
[368589422,1751218233657,-460.0,0.00018366,2]
[368589423,1751218233666,-460.0,0.00018366,2]
[368589424,1751218233676,-460.0,0.00018366,2]
[368589425,1751218233686,-461.43656074,0.00018366,2]
[368589426,1751218233695,-460.0,0.00018366,2]
[368589427,1751218233705,-460.0,0.00018366,2]
[368589428,1751218233716,-460.0,0.00018366,2]
[368589429,1751218233726,-561.73889037,0.00018366,2]
[368589430,1751218233735,-460.0,0.00018366,2]
[368589431,1751218233745,-440.66643812,0.00018366,2]
[368589432,1751218233755,-460.0,0.00018366,2]
[368589433,1751218233765,-460.0,0.00018366,2]
[368589434,1751218233774,-460.0,0.00018366,2]
[368589435,1751218233784,-460.0,0.00018366,2]
[368589436,1751218233794,-500.0,0.00018366,2]
[368589437,1751218233803,-500.0,0.00018366,2]
[368589438,1751218233813,-500.0,0.00018366,2]
[368589439,1751218233823,-496.79,0.00018366,2]
[368589440,1751218233832,-460.0,0.00018366,2]
[368589441,1751218233842,-460.0,0.00018366,2]
[368589442,1751218233852,-460.0,0.00018366,2]
[368589443,1751218233862,-460.0,0.00018366,2]
[368589444,1751218233871,-2227.44,0.00018366,2]
[368589445,1751218233881,-460.0,0.00018366,2]
[368589446,1751218233891,-460.0,0.00018366,2]
[368589447,1751218233900,-460.0,0.00018366,2]
[368589448,1751218233910,-460.0,0.00018366,2]
[368589449,1751218233920,-489.19,0.00018366,2]
[368589450,1751218233930,-460.0,0.00018366,2]
[368589451,1751218233939,-460.0,0.00018366,2]
[368589452,1751218233950,-460.0,0.00018366,2]
[368589453,1751218233960,-460.0,0.00018366,2]
[368589454,1751218233970,-460.0,0.00018366,2]
[368589455,1751218233979,-460.0,0.00018366,2]
[368589456,1751218233989,-460.0,0.00018366,2]
[368589457,1751218233998,-854.41,0.00018366,2]
[368589458,1751218234008,-2646.89,0.00018366,2]
[368589459,1751218234018,-461.15221161,0.00018366,2]
[368589460,1751218234027,-460.0,0.00018366,2]
[368589461,1751218234037,-460.0,0.00018366,2]
[368589462,1751218234046,-469.05527475,0.00018366,2]
[368589463,1751218234055,-460.0,0.00018366,2]
[368589464,1751218234066,-507.06142668,0.00018366,2]
[368589465,1751218234076,-177.12711563,0.00018366,2]
[368589466,1751218234085,-460.0,0.00018366,2]
[368589467,1751218234095,-460.0,0.00018366,2]
[368589468,1751218234105,-460.0,0.00018366,2]
[368589469,1751218234114,-460.0,0.00018366,2]
[368589470,1751218234123,-460.0,0.00018366,2]
[368589471,1751218234133,-460.0,0.00018366,2]
[368589472,1751218234143,-460.0,0.00018366,2]
[368589473,1751218234153,-460.0,0.00018366,2]
[368589474,1751218234163,-460.0,0.00018366,2]
[368589475,1751218234172,-460.0,0.00018366,2]
[368589476,1751218234183,-460.0,0.00018366,2]
[368589477,1751218234192,-460.0,0.00018366,2]
[368589478,1751218234202,-899.4,0.00018366,2]
[368589479,1751218234211,-500.0,0.00018366,2]
[368589480,1751218234221,-460.0,0.00018366,2]
[368589481,1751218234231,-460.0,0.00018366,2]
[368589482,1751218234240,-460.0,0.00018366,2]
[368589483,1751218234250,-1098.05,0.00018366,2]
[368589484,1751218234260,-460.0,0.00018366,2]
[368589485,1751218234269,-460.0,0.00018366,2]
[368589486,1751218234279,-460.0,0.00018366,2]
[368589487,1751218234289,-460.0,0.00018366,2]
[368589488,1751218234299,-460.0,0.00018366,2]
[368589489,1751218234309,-571.80978943,0.00018366,2]
[368589490,1751218234319,-460.0,0.00018366,2]
[368589491,1751218234328,-460.0,0.00018366,2]
[368589492,1751218234338,-460.0,0.00018367,2]
[368589493,1751218234347,-460.0,0.00018367,2]
[368589494,1751218234358,-460.0,0.00018367,2]
[368589495,1751218234367,-460.0,0.00018367,2]
[368589496,1751218234377,-323.45902304,0.00018367,2]
[368589497,1751218234387,-460.0,0.00018367,2]
[368589498,1751218234398,-460.0,0.00018367,2]
[368589499,1751218234407,-460.0,0.00018367,2]
[368589500,1751218234417,-460.0,0.00018367,2]
[368589501,1751218234428,-460.0,0.00018367,2]
[368589502,1751218234438,-460.0,0.00018367,2]
[368589503,1751218234449,-460.0,0.00018367,2]
[368589504,1751218234458,-460.0,0.00018367,2]
[368589505,1751218234468,-460.0,0.00018367,2]
[368589506,1751218234478,-460.0,0.00018367,2]
[368589507,1751218234487,-472.40445063,0.00018367,2]
[368589508,1751218234497,-460.0,0.00018367,2]
[368589509,1751218234507,-460.0,0.00018367,2]
[368589510,1751218234517,-460.0,0.00018367,2]
[368589511,1751218234527,-460.0,0.00018367,2]
[368589512,1751218234537,-512.10575643,0.00018367,2]
[368589513,1751218234546,-461.52962911,0.00018367,2]
[368589514,1751218234556,-460.0,0.00018367,2]
[368589515,1751218234566,-465.38291842,0.00018367,2]
[368589516,1751218234575,-464.60575475,0.00018367,2]
[368589517,1751218234584,-466.2014684,0.00018367,2]
[368589518,1751218234594,-463.71288288,0.00018367,2]
[368589519,1751218234604,-464.14333597,0.00018367,2]
[368589520,1751218234614,-575.4339991,0.00018367,2]
[368589521,1751218234624,-464.19197366,0.00018367,2]
[368589522,1751218234634,-460.0,0.00018367,2]
[368589523,1751218234643,-460.0,0.00018367,2]
[368589524,1751218234653,-460.0,0.00018367,2]
[368589525,1751218234662,-460.0,0.00018367,2]
[368589526,1751218234672,-460.0,0.00018367,2]
[368589527,1751218234682,-460.0,0.00018367,2]
[368589528,1751218234691,-460.0,0.00018367,2]
[368589529,1751218234700,-460.0,0.00018367,2]
[368589530,1751218234710,-460.0,0.00018367,2]
[368589531,1751218234719,-47.29266344,0.00018367,2]
[368589532,1751218234735,-420.27488827,0.00018367,2]
[368589533,1751218234744,-460.0,0.00018367,2]
[368589534,1751218234754,-325.42591787,0.00018367,2]
[368589535,1751218234763,-467.4328484,0.00018367,2]
[368589536,1751218234772,-460.0,0.00018367,2]
[368589537,1751218234781,-460.0,0.00018367,2]
[368589538,1751218234790,-460.0,0.00018367,2]
[368589539,1751218234799,-406.19521633,0.00018367,2]
[368589540,1751218234808,-460.0,0.00018367,2]
[368589541,1751218234818,-584.71355887,0.00018367,2]
[368589542,1751218234827,-460.0,0.00018367,2]
[368589543,1751218234836,-460.0,0.00018367,2]
[368589544,1751218234845,-460.0,0.00018367,2]
[368589545,1751218234855,-467.20515035,0.00018367,2]
[368589546,1751218234864,-460.0,0.00018367,2]
[368589547,1751218234874,-460.0,0.00018367,2]
[368589548,1751218234883,-460.0,0.00018367,2]
[368589549,1751218234893,-436.89342291,0.00018367,2]
[368589550,1751218234903,-460.0,0.00018367,2]
[368589551,1751218234913,-460.0,0.00018367,2]
[368589552,1751218234923,-1075.93,0.00018367,2]
[368589553,1751218234933,-540.39484939,0.00018367,2]
[368589554,1751218234942,-460.0,0.00018367,2]
[368589555,1751218234953,-460.0,0.00018367,2]